[Event "Elite Hotels Open 2023"]
[Site "Elite Stadshotellet, Kungsgatan 6, Vaxjo, Sweden"]
[Date "2023.02.10"]
[Round "4.17"]
[White "Lindholm, Gustav"]
[Black "Magelius, Olof"]
[Result "1-0"]
[TimeControl "15 minutes + 5 seconds per move from move one (Round 1 - 4) / 90 minutes + 30 seconds per move from move one (Round 5 - 8)"]
[WhiteFideId "1736515"]
[BlackFideId "1720031"]
[WhiteElo "2128"]
[BlackElo "1906"]

1. d4 {[%clk 00:15:07]} {[%emt 00:00:03]} Nf6 {[%clk 00:15:03]} {[%emt
00:00:07]} 2. c4 {[%clk 00:15:10]} {[%emt 00:00:01]} c5 {[%clk 00:15:07]}
{[%emt 00:00:02]} 3. d5 {[%clk 00:15:13]} {[%emt 00:00:02]} b5 {[%clk
00:15:11]} {[%emt 00:00:01]} 4. cxb5 {[%clk 00:15:17]} {[%emt 00:00:01]} a6
{[%clk 00:15:15]} {[%emt 00:00:02]} 5. bxa6 {[%clk 00:15:19]} {[%emt 00:00:02]}
Bxa6 {[%clk 00:15:13]} {[%emt 00:00:07]} 6. Nc3 {[%clk 00:15:22]} {[%emt
00:00:02]} d6 {[%clk 00:14:53]} {[%emt 00:00:25]} 7. e4 {[%clk 00:15:24]}
{[%emt 00:00:03]} Bxf1 {[%clk 00:14:55]} {[%emt 00:00:02]} 8. Kxf1 {[%clk
00:15:27]} {[%emt 00:00:02]} g6 {[%clk 00:14:56]} {[%emt 00:00:05]} 9. g3
{[%clk 00:15:29]} {[%emt 00:00:02]} Bg7 {[%clk 00:14:59]} {[%emt 00:00:01]} 10.
Kg2 {[%clk 00:15:33]} {[%emt 00:00:02]} O-O {[%clk 00:15:02]} {[%emt 00:00:02]}
11. Nf3 {[%clk 00:15:29]} {[%emt 00:00:09]} Nbd7 {[%clk 00:14:27]} {[%emt
00:00:40]} 12. Qe2 {[%clk 00:14:32]} {[%emt 00:01:01]} Ng4 {[%clk 00:13:50]}
{[%emt 00:00:43]} 13. Bd2 {[%clk 00:13:53]} {[%emt 00:00:43]} Nge5 {[%clk
00:13:06]} {[%emt 00:00:51]} 14. Nxe5 {[%clk 00:13:49]} {[%emt 00:00:08]} Nxe5
{[%clk 00:13:06]} {[%emt 00:00:04]} 15. b3 {[%clk 00:13:03]} {[%emt 00:00:52]}
e6 {[%clk 00:12:11]} {[%emt 00:01:00]} 16. a4 {[%clk 00:12:06]} {[%emt
00:01:02]} c4 {[%clk 00:11:30]} {[%emt 00:00:46]} 17. f4 {[%clk 00:11:20]}
{[%emt 00:00:50]} Nd7 {[%clk 00:11:26]} {[%emt 00:00:10]} 18. bxc4 {[%clk
00:11:19]} {[%emt 00:00:07]} Nc5 {[%clk 00:11:10]} {[%emt 00:00:20]} 19. Ra2
{[%clk 00:10:42]} {[%emt 00:00:43]} f5 {[%clk 00:09:08]} {[%emt 00:02:06]} 20.
dxe6 {[%clk 00:09:39]} {[%emt 00:01:08]} Bxc3 {[%clk 00:08:51]} {[%emt
00:00:22]} 21. Bxc3 {[%clk 00:09:35]} {[%emt 00:00:08]} Nxe4 {[%clk 00:08:50]}
{[%emt 00:00:07]} 22. Ba1 {[%clk 00:09:11]} {[%emt 00:00:28]} Re8 {[%clk
00:08:51]} {[%emt 00:00:04]} 23. Qb2 {[%emt 00:01:03]} Nc5 {[%emt 00:00:02]}
1-0

[Event "Elite Hotels Open 2023"]
[Site "Elite Stadshotellet, Kungsgatan 6, Vaxjo, Sweden"]
[Date "2023.02.10"]
[Round "4.18"]
[White "Alsaied Ali, Firas"]
[Black "Fransson, Patrick"]
[Result "0-1"]
[TimeControl "15 minutes + 5 seconds per move from move one (Round 1 - 4) / 90 minutes + 30 seconds per move from move one (Round 5 - 8)"]
[WhiteFideId "1730924"]
[BlackFideId "1709305"]
[WhiteElo "1872"]
[BlackElo "2126"]

1. c4 {[%clk 00:15:07]} {[%emt 00:00:03]} c6 {[%clk 00:15:01]} {[%emt
00:00:09]} 2. g3 {[%clk 00:14:56]} {[%emt 00:00:16]} g6 {[%clk 00:14:45]}
{[%emt 00:00:22]} 3. Bg2 {[%clk 00:14:52]} {[%emt 00:00:09]} Bg7 {[%clk
00:14:45]} {[%emt 00:00:05]} 4. Nf3 {[%clk 00:14:37]} {[%emt 00:00:19]} d6
{[%clk 00:14:47]} {[%emt 00:00:04]} 5. O-O {[%clk 00:14:25]} {[%emt 00:00:18]}
e5 {[%clk 00:14:31]} {[%emt 00:00:20]} 6. Nc3 {[%clk 00:14:16]} {[%emt
00:00:13]} f5 {[%clk 00:14:26]} {[%emt 00:00:10]} 7. d3 {[%clk 00:14:04]}
{[%emt 00:00:17]} Nf6 {[%clk 00:14:27]} {[%emt 00:00:04]} 8. Qc2 {[%clk
00:13:38]} {[%emt 00:00:31]} O-O {[%clk 00:14:11]} {[%emt 00:00:20]} 9. Bg5
{[%clk 00:13:07]} {[%emt 00:00:37]} Be6 {[%clk 00:12:40]} {[%emt 00:01:35]} 10.
Rac1 {[%clk 00:11:57]} {[%emt 00:01:16]} h6 {[%clk 00:11:57]} {[%emt 00:00:49]}
11. Bxf6 {[%clk 00:10:55]} {[%emt 00:01:06]} Qxf6 {[%clk 00:11:58]} {[%emt
00:00:04]} 12. Qb3 {[%clk 00:10:40]} {[%emt 00:00:20]} Rf7 {[%clk 00:11:37]}
{[%emt 00:00:26]} 13. Nd2 {[%clk 00:10:13]} {[%emt 00:00:31]} Na6 {[%clk
00:11:16]} {[%emt 00:00:27]} 14. Qa3 {[%clk 00:10:06]} {[%emt 00:00:13]} Bd7
{[%clk 00:10:27]} {[%emt 00:00:52]} 15. b4 {[%clk 00:09:33]} {[%emt 00:00:40]}
Nc7 {[%clk 00:10:30]} {[%emt 00:00:02]} 16. b5 {[%clk 00:09:12]} {[%emt
00:00:26]} Bf8 {[%clk 00:07:42]} {[%emt 00:02:52]} 17. Qb3 {[%clk 00:08:08]}
{[%emt 00:01:09]} Ne6 {[%clk 00:07:34]} {[%emt 00:00:12]} 18. bxc6 {[%clk
00:07:40]} {[%emt 00:00:34]} bxc6 {[%clk 00:07:11]} {[%emt 00:00:29]} 19. Qb7
{[%clk 00:06:56]} {[%emt 00:00:47]} Qd8 {[%clk 00:07:05]} {[%emt 00:00:12]} 20.
Rb1 {[%clk 00:06:28]} {[%emt 00:00:33]} Nc5 {[%clk 00:06:53]} {[%emt 00:00:17]}
21. Qb2 {[%clk 00:06:13]} {[%emt 00:00:20]} Rc8 {[%clk 00:06:50]} {[%emt
00:00:09]} 22. Nb3 {[%clk 00:05:50]} {[%emt 00:00:27]} Ne6 {[%clk 00:06:49]}
{[%emt 00:00:06]} 23. Qa3 {[%clk 00:05:15]} {[%emt 00:00:41]} Qc7 {[%clk
00:06:39]} {[%emt 00:00:15]} 24. Rfc1 {[%clk 00:04:57]} {[%emt 00:00:22]} Nd4
{[%clk 00:05:37]} {[%emt 00:01:07]} 25. e3 {[%clk 00:04:25]} {[%emt 00:00:37]}
Ne6 {[%clk 00:05:38]} {[%emt 00:00:04]} 26. Qa6 {[%clk 00:04:19]} {[%emt
00:00:11]} f4 {[%clk 00:05:30]} {[%emt 00:00:14]} 27. Be4 {[%clk 00:03:36]}
{[%emt 00:00:47]} g5 {[%clk 00:04:44]} {[%emt 00:00:51]} 28. Na5 {[%clk
00:03:35]} {[%emt 00:00:06]} Nc5 {[%clk 00:04:41]} {[%emt 00:00:08]} 29. Rb7
{[%clk 00:03:18]} {[%emt 00:00:22]} Nxa6 {[%clk 00:04:42]} {[%emt 00:00:05]} 30.
Rxc7 {[%emt 00:00:04]} Rxc7 {[%clk 00:04:38]} {[%emt 00:00:07]} 31. Rb1 {[%clk
00:03:07]} {[%emt 00:00:19]} Nc5 {[%clk 00:04:29]} {[%emt 00:00:13]} 32. Nb3
{[%clk 00:02:32]} {[%emt 00:00:39]} Nxe4 {[%clk 00:04:28]} {[%emt 00:00:06]} 33.
Nxe4 {[%clk 00:02:36]} {[%emt 00:00:02]} Bf5 {[%clk 00:04:29]} {[%emt
00:00:05]} 34. Nbd2 {[%clk 00:02:31]} {[%emt 00:00:09]} Rb7 {[%clk 00:04:23]}
{[%emt 00:00:12]} 35. Nb3 {[%clk 00:02:10]} {[%emt 00:00:26]} Bxe4 {[%clk
00:04:15]} {[%emt 00:00:12]} 36. dxe4 {[%clk 00:02:14]} fxe3 {[%clk 00:03:57]}
{[%emt 00:00:24]} 37. fxe3 {[%clk 00:02:17]} {[%emt 00:00:01]} a5 {[%clk
00:03:56]} {[%emt 00:00:06]} 38. Rc1 {[%clk 00:02:07]} {[%emt 00:00:15]} a4
{[%clk 00:03:59]} {[%emt 00:00:02]} 39. Nd2 {[%clk 00:02:09]} {[%emt 00:00:03]}
Rb2 {[%clk 00:04:01]} {[%emt 00:00:03]} 0-1

[Event "Elite Hotels Open 2023"]
[Site "Elite Stadshotellet, Kungsgatan 6, Vaxjo, Sweden"]
[Date "2023.02.11"]
[Round "5.1"]
[White "Kucuksari, Kaan"]
[Black "Galperin, Platon"]
[Result "0-1"]
[TimeControl "15 minutes + 5 seconds per move from move one (Round 1 - 4) / 90 minutes + 30 seconds per move from move one (Round 5 - 8)"]
[WhiteTitle "IM"]
[BlackTitle "GM"]
[WhiteFideId "6380166"]
[BlackFideId "14165414"]
[WhiteElo "2507"]
[BlackElo "2538"]

1. d4 {[%clk 01:30:58]} Nf6 {[%clk 01:30:52]} {[%emt 00:00:08]} 2. c4 {[%clk
01:31:24]} {[%emt 00:00:06]} g6 {[%clk 01:31:15]} {[%emt 00:00:05]} 3. g3
{[%clk 01:31:51]} {[%emt 00:00:03]} Bg7 {[%clk 01:31:39]} {[%emt 00:00:06]} 4.
Bg2 {[%clk 01:32:17]} {[%emt 00:00:04]} O-O {[%clk 01:31:57]} {[%emt 00:00:11]}
5. Nc3 {[%clk 01:32:45]} {[%emt 00:00:04]} d6 {[%clk 01:32:11]} {[%emt
00:00:15]} 6. Nf3 {[%clk 01:33:10]} {[%emt 00:00:05]} Re8 {[%clk 01:32:12]}
{[%emt 00:00:29]} 7. O-O {[%clk 01:33:34]} {[%emt 00:00:07]} Bd7 {[%clk
01:32:38]} {[%emt 00:00:04]} 8. e4 {[%clk 01:28:38]} {[%emt 00:05:26]} e5
{[%clk 01:30:43]} {[%emt 00:02:24]} 9. h3 {[%clk 01:24:20]} {[%emt 00:04:49]}
exd4 {[%clk 01:29:31]} {[%emt 00:01:41]} 10. Nxd4 {[%clk 01:24:45]} {[%emt
00:00:05]} Nc6 {[%clk 01:29:57]} {[%emt 00:00:04]} 11. Be3 {[%clk 01:18:42]}
{[%emt 00:06:35]} Nxd4 {[%clk 01:30:17]} {[%emt 00:00:09]} 12. Bxd4 {[%clk
01:19:09]} {[%emt 00:00:03]} c5 {[%clk 01:30:41]} {[%emt 00:00:06]} 13. Be3
{[%clk 01:12:13]} {[%emt 00:07:26]} Qc8 {[%clk 01:30:39]} {[%emt 00:00:31]} 14.
Kh2 {[%clk 01:08:35]} {[%emt 00:04:09]} Bc6 {[%clk 01:30:14]} {[%emt 00:00:54]}
15. Qc2 {[%clk 01:00:08]} {[%emt 00:08:58]} a6 {[%clk 01:27:02]} {[%emt
00:03:43]} 16. Rad1 {[%clk 00:54:55]} {[%emt 00:05:43]} Qe6 {[%clk 01:27:20]}
{[%emt 00:00:11]} 17. Nd5 {[%clk 00:55:18]} {[%emt 00:00:07]} Bxd5 {[%clk
01:27:43]} {[%emt 00:00:06]} 18. cxd5 {[%clk 00:55:19]} {[%emt 00:00:30]} Qe7
{[%clk 01:27:54]} {[%emt 00:00:18]} 19. Rfe1 {[%clk 00:54:55]} {[%emt
00:00:54]} Rac8 {[%clk 00:55:39]} {[%emt 00:32:44]} 20. f3 {[%clk 00:47:37]}
{[%emt 00:07:49]} b5 {[%clk 00:41:39]} {[%emt 00:14:30]} 21. h4 {[%clk
00:47:46]} {[%emt 00:00:22]} Nh5 {[%clk 00:21:55]} {[%emt 00:20:13]} 22. Bh3
{[%clk 00:45:00]} {[%emt 00:03:16]} Rc7 {[%clk 00:19:24]} {[%emt 00:03:01]} 23.
Bg5 {[%clk 00:29:35]} {[%emt 00:15:55]} Qf8 {[%clk 00:17:43]} {[%emt 00:02:10]}
24. Bd2 {[%clk 00:24:27]} {[%emt 00:05:39]} Rce7 {[%clk 00:17:45]} {[%emt
00:00:28]} 25. f4 {[%clk 00:21:42]} {[%emt 00:03:15]} f5 {[%clk 00:14:00]}
{[%emt 00:04:14]} 26. Bg2 {[%clk 00:10:24]} {[%emt 00:11:48]} fxe4 {[%clk
00:05:07]} {[%emt 00:09:22]} 27. Bxe4 {[%clk 00:10:53]} {[%emt 00:00:02]} Bxb2
{[%clk 00:04:18]} {[%emt 00:01:19]} 28. Bf3 {[%clk 00:10:21]} {[%emt 00:01:02]}
Bd4 {[%clk 00:03:53]} {[%emt 00:00:53]} 29. Kg2 {[%clk 00:08:15]} {[%emt
00:02:37]} Ng7 {[%clk 00:03:46]} {[%emt 00:00:36]} 30. Re4 {[%clk 00:05:31]}
{[%emt 00:03:15]} Rxe4 {[%clk 00:01:38]} {[%emt 00:02:38]} 31. Bxe4 {[%clk
00:06:00]} {[%emt 00:00:01]} Re7 {[%clk 00:01:04]} {[%emt 00:01:04]} 32. g4
{[%clk 00:06:10]} {[%emt 00:00:20]} h5 {[%clk 00:00:39]} {[%emt 00:00:55]} 33.
Bxg6 {[%clk 00:04:29]} {[%emt 00:02:11]} hxg4 {[%clk 00:00:37]} {[%emt
00:00:32]} 34. h5 {[%clk 00:02:43]} {[%emt 00:02:16]} Qa8 {[%clk 00:00:32]}
{[%emt 00:00:35]} 35. Bh7+ {[%clk 00:00:47]} {[%emt 00:02:26]} Kf8 {[%clk
00:00:58]} {[%emt 00:00:04]} 36. Be4 {[%clk 00:01:00]} {[%emt 00:00:17]} Nxh5
{[%clk 00:00:44]} {[%emt 00:00:44]} 37. Rh1 {[%clk 00:00:32]} {[%emt 00:00:59]}
Qe8 {[%clk 00:01:08]} {[%emt 00:00:05]} 38. Qd3 {[%clk 00:00:34]} {[%emt
00:00:29]} Rxe4 {[%clk 00:01:30]} {[%emt 00:00:08]} 39. Rxh5 {[%clk 00:00:55]}
{[%emt 00:00:08]} Qxh5 {[%clk 00:01:51]} {[%emt 00:00:09]} 0-1

[Event "Elite Hotels Open 2023"]
[Site "Elite Stadshotellet, Kungsgatan 6, Vaxjo, Sweden"]
[Date "2023.02.11"]
[Round "5.2"]
[White "Sivuk, Vitaly"]
[Black "Abdrlauf, Elham"]
[Result "1/2-1/2"]
[TimeControl "15 minutes + 5 seconds per move from move one (Round 1 - 4) / 90 minutes + 30 seconds per move from move one (Round 5 - 8)"]
[WhiteTitle "GM"]
[BlackTitle "IM"]
[WhiteFideId "14116502"]
[BlackFideId "1533533"]
[WhiteElo "2530"]
[BlackElo "2527"]

1. d4 {[%clk 01:30:55]} {[%emt 00:00:04]} Nf6 {[%clk 01:28:58]} {[%emt
00:02:03]} 2. c4 {[%clk 01:31:11]} {[%emt 00:00:14]} e6 {[%clk 01:29:21]}
{[%emt 00:00:08]} 3. Nf3 {[%clk 01:31:30]} {[%emt 00:00:10]} d5 {[%clk
01:29:40]} {[%emt 00:00:11]} 4. Bg5 {[%clk 01:31:46]} {[%emt 00:00:14]} Be7
{[%clk 01:29:55]} {[%emt 00:00:16]} 5. Nc3 {[%clk 01:30:39]} {[%emt 00:01:36]}
O-O {[%clk 01:29:53]} {[%emt 00:00:32]} 6. e3 {[%clk 01:30:57]} {[%emt
00:00:12]} c6 {[%clk 01:29:09]} {[%emt 00:01:15]} 7. Bd3 {[%clk 01:29:51]}
{[%emt 00:01:35]} dxc4 {[%clk 01:27:51]} {[%emt 00:01:49]} 8. Bxc4 {[%clk
01:30:14]} {[%emt 00:00:07]} b5 {[%clk 01:28:16]} {[%emt 00:00:05]} 9. Bd3
{[%clk 01:30:31]} {[%emt 00:00:12]} Nbd7 {[%clk 01:28:41]} {[%emt 00:00:05]} 10.
O-O {[%clk 01:30:22]} {[%emt 00:00:39]} Bb7 {[%clk 01:28:13]} {[%emt 00:00:58]}
11. Rc1 {[%clk 01:30:36]} {[%emt 00:00:15]} Rc8 {[%clk 01:27:11]} {[%emt
00:01:32]} 12. a3 {[%clk 01:30:25]} {[%emt 00:00:43]} a5 {[%clk 01:27:36]}
{[%emt 00:00:05]} 13. Ne5 {[%clk 01:29:43]} {[%emt 00:01:12]} Nxe5 {[%clk
01:25:03]} {[%emt 00:03:04]} 14. dxe5 {[%clk 01:29:59]} {[%emt 00:00:14]} Nd7
{[%clk 01:25:30]} {[%emt 00:00:03]} 15. Bxe7 {[%clk 01:30:18]} {[%emt
00:00:11]} Qxe7 {[%clk 01:25:51]} {[%emt 00:00:08]} 16. f4 {[%clk 01:30:43]}
{[%emt 00:00:04]} Nc5 {[%clk 01:25:09]} {[%emt 00:01:13]} 17. Bb1 {[%clk
01:30:37]} {[%emt 00:00:36]} b4 {[%clk 01:22:56]} {[%emt 00:02:43]} 18. axb4
{[%clk 01:30:58]} {[%emt 00:00:09]} axb4 {[%clk 01:23:25]} {[%emt 00:00:02]} 19.
Ne2 {[%clk 01:31:14]} {[%emt 00:00:13]} Ba6 {[%clk 01:23:46]} {[%emt 00:00:09]}
20. Rf2 {[%clk 01:30:25]} {[%emt 00:01:19]} Bxe2 {[%clk 01:22:17]} {[%emt
00:02:00]} 21. Qxe2 {[%clk 01:26:56]} {[%emt 00:03:59]} Rfd8 {[%clk 01:17:01]}
{[%emt 00:05:45]} 22. Qc4 {[%clk 01:21:46]} {[%emt 00:05:41]} Nd7 {[%clk
01:12:20]} {[%emt 00:05:08]} 23. Be4 {[%clk 01:02:51]} {[%emt 00:19:26]} g6
{[%clk 00:52:37]} {[%emt 00:20:15]} 24. Rfc2 {[%clk 01:00:46]} {[%emt
00:02:34]} c5 {[%clk 00:48:36]} {[%emt 00:04:32]} 25. Qa6 {[%clk 00:57:30]}
{[%emt 00:03:45]} Nf8 {[%clk 00:28:33]} {[%emt 00:20:34]} 26. b3 {[%clk
00:53:13]} {[%emt 00:04:46]} Rc7 {[%clk 00:28:26]} {[%emt 00:00:38]} 27. Qb6
{[%clk 00:48:22]} {[%emt 00:05:21]} Rcc8 {[%clk 00:19:09]} {[%emt 00:09:47]} 28.
h3 {[%clk 00:42:01]} {[%emt 00:06:50]} Qh4 {[%clk 00:15:08]} {[%emt 00:04:33]}
29. Qb5 {[%clk 00:40:52]} {[%emt 00:01:38]} g5 {[%clk 00:11:52]} {[%emt
00:03:46]} 30. Rf2 {[%clk 00:35:01]} {[%emt 00:06:20]} Ng6 {[%clk 00:10:00]}
{[%emt 00:02:23]} 31. Qb7 {[%clk 00:33:25]} {[%emt 00:02:06]} Rf8 {[%clk
00:07:26]} {[%emt 00:03:04]} 32. Bc6 {[%clk 00:30:20]} {[%emt 00:03:34]} gxf4
{[%clk 00:06:15]} {[%emt 00:01:43]} 33. exf4 {[%clk 00:30:33]} {[%emt
00:00:15]} Rcd8 {[%clk 00:04:31]} {[%emt 00:02:15]} 34. Rcf1 {[%clk 00:26:43]}
{[%emt 00:04:19]} Rd4 {[%clk 00:03:56]} {[%emt 00:01:06]} 35. f5 {[%clk
00:26:15]} {[%emt 00:00:58]} exf5 {[%clk 00:04:23]} {[%emt 00:00:03]} 36. Rxf5
{[%clk 00:26:18]} {[%emt 00:00:26]} Qe7 {[%clk 00:04:13]} {[%emt 00:00:41]} 37.
Qxe7 {[%clk 00:21:36]} {[%emt 00:05:12]} Nxe7 {[%clk 00:04:43]} {[%emt
00:00:01]} 38. Rg5+ {[%clk 00:21:53]} {[%emt 00:00:13]} Ng6 {[%clk 00:03:17]}
{[%emt 00:01:55]} 39. Bb5 {[%clk 00:21:56]} {[%emt 00:00:27]} Re4 {[%clk
00:02:25]} {[%emt 00:01:22]} 40. Rff5 {[%clk 00:20:36]} {[%emt 00:01:51]} Rd8
{[%clk 00:00:40]} {[%emt 00:02:15]} 41. Bc4 {[%clk 00:16:48]} {[%emt 00:04:18]}
Rd7 {[%clk 00:01:10]} {[%emt 00:00:01]} 42. e6 {[%clk 00:15:45]} {[%emt
00:01:32]} fxe6 {[%clk 00:01:39]} 43. Rxc5 {[%clk 00:16:02]} {[%emt 00:00:14]}
Kg7 {[%clk 00:01:36]} {[%emt 00:00:34]} 44. Rc6 {[%clk 00:10:48]} {[%emt
00:05:43]} Kf6 {[%clk 00:01:33]} {[%emt 00:00:33]} 45. Rg3 {[%clk 00:10:54]}
{[%emt 00:00:23]} Ke7 {[%clk 00:00:32]} {[%emt 00:01:31]} 46. Rb6 {[%clk
00:10:35]} {[%emt 00:00:48]} Rd2 {[%clk 00:00:38]} {[%emt 00:00:25]} 47. Rxb4
{[%clk 00:10:09]} {[%emt 00:00:57]} Kf6 {[%clk 00:00:37]} {[%emt 00:00:32]} 48.
Rb7 {[%clk 00:08:33]} {[%emt 00:02:05]} h5 {[%clk 00:00:41]} {[%emt 00:00:26]}
49. Rf3+ {[%clk 00:08:21]} {[%emt 00:00:42]} Rf4 {[%clk 00:00:54]} {[%emt
00:00:18]} 50. Re3 {[%clk 00:07:54]} {[%emt 00:00:56]} Rd1+ {[%clk 00:00:35]}
{[%emt 00:00:49]} 51. Kh2 {[%clk 00:08:18]} {[%emt 00:00:06]} Ne5 {[%clk
00:01:04]} {[%emt 00:00:02]} 52. Rb6 {[%clk 00:08:02]} {[%emt 00:00:45]} Nxc4
{[%clk 00:01:09]} {[%emt 00:00:25]} 53. bxc4 {[%clk 00:06:56]} {[%emt
00:01:36]} Rxc4 {[%clk 00:00:50]} {[%emt 00:00:50]} 54. Rbxe6+ {[%clk
00:07:08]} {[%emt 00:00:17]} Kf7 {[%clk 00:00:55]} {[%emt 00:00:23]} 55. Re7+
{[%clk 00:07:28]} {[%emt 00:00:12]} Kf6 {[%clk 00:00:53]} {[%emt 00:00:31]} 56.
R3e6+ {[%clk 00:07:29]} {[%emt 00:00:30]} Kf5 {[%clk 00:00:58]} {[%emt
00:00:25]} 57. Re5+ {[%clk 00:07:51]} {[%emt 00:00:07]} Kf6 {[%clk 00:01:21]}
{[%emt 00:00:08]} 58. R7e6+ {[%emt 00:00:41]} Kf7 59. Rh6 {[%clk 00:03:24]}
{[%emt 00:04:45]} h4 {[%clk 00:02:18]} {[%emt 00:00:04]} 60. Rg5 {[%clk
00:03:00]} {[%emt 00:00:52]} Rdd4 {[%clk 00:01:56]} {[%emt 00:00:54]} 61. Ra6
{[%clk 00:02:51]} {[%emt 00:00:38]} Re4 {[%clk 00:01:59]} {[%emt 00:00:27]} 62.
Rgg6 {[%clk 00:02:04]} {[%emt 00:01:17]} Rf4 {[%clk 00:02:04]} {[%emt
00:00:25]} 63. Rh6 {[%clk 00:02:03]} {[%emt 00:00:32]} Kg7 {[%clk 00:02:24]}
{[%emt 00:00:10]} 64. Rag6+ {[%clk 00:02:11]} {[%emt 00:00:22]} Kf7 {[%clk
00:02:53]} {[%emt 00:00:01]} 65. Rg5 {[%clk 00:02:30]} {[%emt 00:00:10]} Rcd4
{[%clk 00:03:01]} {[%emt 00:00:22]} 66. Rh7+ {[%clk 00:02:24]} {[%emt
00:00:36]} Kf6 {[%clk 00:03:17]} {[%emt 00:00:14]} 67. Rg8 {[%clk 00:02:49]}
{[%emt 00:00:04]} Ra4 {[%clk 00:03:12]} {[%emt 00:00:36]} 68. Rhg7 {[%clk
00:02:06]} {[%emt 00:01:13]} Ke6 {[%clk 00:02:37]} {[%emt 00:01:05]} 69. Re8+
{[%clk 00:01:51]} {[%emt 00:00:45]} Kf6 {[%clk 00:02:44]} {[%emt 00:00:23]} 70.
Rgg8 {[%clk 00:01:59]} {[%emt 00:00:23]} Rae4 {[%clk 00:02:01]} {[%emt
00:01:12]} 71. Ref8+ {[%clk 00:02:05]} {[%emt 00:00:24]} Ke7 {[%clk 00:02:19]}
{[%emt 00:00:12]} 72. Ra8 {[%clk 00:02:23]} {[%emt 00:00:12]} Ra4 {[%clk
00:02:22]} {[%emt 00:00:28]} 73. Rab8 {[%clk 00:01:36]} {[%emt 00:01:16]} Rab4
{[%clk 00:02:24]} {[%emt 00:00:28]} 74. Rge8+ {[%clk 00:01:25]} {[%emt
00:00:41]} Kf7 {[%clk 00:02:18]} {[%emt 00:00:37]} 75. Rf8+ {[%clk 00:01:51]}
{[%emt 00:00:04]} Kg7 {[%clk 00:02:42]} {[%emt 00:00:05]} 76. Rg8+ {[%clk
00:02:16]} {[%emt 00:00:05]} Kf7 {[%clk 00:02:53]} {[%emt 00:00:20]} 77. Rbf8+
{[%clk 00:02:01]} {[%emt 00:00:44]} Ke7 {[%clk 00:03:21]} {[%emt 00:00:02]} 78.
Rc8 {[%clk 00:01:51]} {[%emt 00:00:40]} Kf7 {[%clk 00:02:53]} {[%emt 00:00:59]}
79. Rg5 {[%clk 00:01:58]} {[%emt 00:00:22]} Rbc4 {[%clk 00:02:09]} {[%emt
00:01:15]} 80. Rh8 {[%clk 00:02:19]} {[%emt 00:00:08]} Kf6 {[%clk 00:02:09]}
{[%emt 00:00:31]} 81. Ra5 {[%clk 00:02:42]} {[%emt 00:00:06]} Kg7 {[%clk
00:02:25]} {[%emt 00:00:14]} 82. Rha8 {[%clk 00:02:34]} {[%emt 00:00:37]} Rce4
{[%clk 00:02:26]} {[%emt 00:00:30]} 83. Ra1 {[%clk 00:02:24]} {[%emt 00:00:40]}
Rd4 {[%clk 00:02:44]} {[%emt 00:00:12]} 84. Kg1 {[%clk 00:02:45]} {[%emt
00:00:08]} Rde4 {[%clk 00:02:56]} {[%emt 00:00:19]} 85. R8a5 {[%clk 00:02:53]}
{[%emt 00:00:22]} Kg6 {[%clk 00:03:12]} {[%emt 00:00:15]} 86. Ra6+ {[%clk
00:03:04]} {[%emt 00:00:18]} Rf6 {[%clk 00:03:09]} {[%emt 00:00:34]} 87. Ra8
{[%clk 00:02:58]} {[%emt 00:00:36]} Kg7 {[%clk 00:02:57]} {[%emt 00:00:42]} 88.
Rb1 {[%clk 00:03:04]} {[%emt 00:00:23]} Rff4 {[%clk 00:03:11]} {[%emt
00:00:16]} 89. Rab8 {[%clk 00:02:05]} {[%emt 00:01:30]} Rd4 {[%clk 00:03:21]}
{[%emt 00:00:20]} 90. R8b6 {[%clk 00:02:16]} {[%emt 00:00:19]} Rde4 {[%clk
00:03:11]} {[%emt 00:00:39]} 91. Ra1 {[%clk 00:01:37]} {[%emt 00:01:09]} Ra4
{[%clk 00:03:31]} {[%emt 00:00:10]} 92. Re1 {[%clk 00:02:01]} {[%emt 00:00:05]}
Kf7 {[%clk 00:02:29]} {[%emt 00:01:33]} 93. Rc1 {[%clk 00:01:20]} {[%emt
00:01:11]} Rac4 {[%clk 00:02:32]} {[%emt 00:00:28]} 94. Rcb1 {[%clk 00:01:31]}
{[%emt 00:00:19]} Kg7 {[%clk 00:02:52]} {[%emt 00:00:10]} 95. Re1 {[%clk
00:01:39]} {[%emt 00:00:21]} Kf7 {[%clk 00:03:13]} {[%emt 00:00:09]} 96. Rbe6
{[%clk 00:01:41]} {[%emt 00:00:28]} Kg7 {[%clk 00:03:07]} {[%emt 00:00:37]} 97.
Re8 {[%clk 00:01:38]} {[%emt 00:00:32]} Ra4 {[%clk 00:03:19]} {[%emt 00:00:19]}
98. R1e7+ {[%clk 00:01:21]} {[%emt 00:00:46]} Kg6 {[%clk 00:03:07]} {[%emt
00:00:42]} 99. Rg8+ {[%clk 00:01:15]} {[%emt 00:00:36]} Kf6 {[%clk 00:03:29]}
{[%emt 00:00:08]} 100. Ree8 {[%clk 00:01:22]} {[%emt 00:00:23]} Ra1+ {[%clk
00:03:41]} {[%emt 00:00:19]} 101. Kh2 {[%clk 00:01:48]} {[%emt 00:00:03]} Raa4
{[%clk 00:03:57]} {[%emt 00:00:14]} 102. Re1 {[%clk 00:01:19]} {[%emt
00:00:59]} Kf7 {[%clk 00:03:08]} {[%emt 00:01:20]} 103. Rg5 {[%clk 00:01:13]}
{[%emt 00:00:36]} Rae4 {[%clk 00:02:51]} {[%emt 00:00:45]} 104. Rg1 {[%clk
00:00:41]} {[%emt 00:01:03]} Kf6 {[%clk 00:03:06]} {[%emt 00:00:15]} 105. Rg8
{[%clk 00:00:54]} {[%emt 00:00:17]} Kf7 {[%clk 00:03:30]} {[%emt 00:00:06]} 106.
Rh8 {[%clk 00:01:21]} {[%emt 00:00:03]} Kg7 {[%clk 00:03:52]} {[%emt 00:00:09]}
107. Ra8 {[%clk 00:01:30]} {[%emt 00:00:20]} Kf7 {[%clk 00:03:57]} {[%emt
00:00:25]} 108. Rga1 {[%clk 00:01:49]} {[%emt 00:00:11]} Kg7 {[%clk 00:04:13]}
{[%emt 00:00:15]} 109. Kg1 {[%clk 00:02:15]} {[%emt 00:00:04]} 1/2-1/2